fUST/lending_fUST_20250727
["ID","MTS","AMOUNT","RATE_DAILY","PERIOD"]
[375199142,1753582274563,-562.76,0.00024708,2]
[375199143,1753582274573,-1937.42,0.00024708,2]
[375199144,1753582274582,-2170.36,0.00024708,2]
[375199145,1753582274592,-3500.14,0.00024708,2]
[375199146,1753582274602,-3565.9030379,0.00024732,2]
[375199147,1753582274611,-436.2340512,0.0002474,2]
[375199148,1753582274621,-429.9863832,0.0002474,2]
[375199149,1753582274630,-429.9863832,0.0002474,2]
[375199150,1753582274640,-886.69,0.000248,7]
[375199151,1753582274649,-20836.21,0.000248,2]
[375199152,1753582274659,-448.0,0.00024816,2]
[375199153,1753582274668,-168.0,0.00024821,2]
[375199154,1753582274677,-3247.78997933,0.00024866,12]
[375199155,1753582274686,-151.0,0.000249,7]
[375199156,1753582274696,-183.2569345,0.000249,2]
[375199157,1753582274705,-151.0,0.000249,7]
[375199158,1753582274714,-151.0,0.000249,7]
[375199159,1753582274724,-15966.54780906,0.000249,2]
[375199160,1753582274736,-23711.61895961,0.000249,2]
[375199161,1753582274747,-876.73638453,0.000249,2]
[375199162,1753582274795,-460.0,0.00019228,2]
[375199163,1753582274804,-460.0,0.00019502,2]
[375199164,1753582274814,-460.0,0.00019776,2]
[375199165,1753582274823,-460.0,0.0002005,2]
[375199166,1753582274833,-4159.995404,0.00024598,2]
[375199167,1753582274845,-171.56199042,0.00024598,2]
[375199168,1753582274855,-7909.7216344,0.000249,2]
[375199169,1753582274867,-15595.44490518,0.000249,2]
[375199170,1753582303877,150.0,0.00018845,2]
[375199171,1753582309657,-207.67061235,0.00019128,2]
[375199172,1753582315225,-164.95781901,0.00019128,2]
[375199173,1753582316914,-265.83937996,0.00019128,2]
[375199174,1753582318565,-233.70346677,0.00019128,2]
[375199175,1753582320320,-164.16062004,0.00019128,2]
[375199176,1753582322159,-191.13294555,0.00019128,2]
[375199177,1753582324877,-412.30116809,0.00019128,2]
[375199178,1753582326962,-300.0,0.00019128,2]
[375199179,1753582328593,-194.69729419,0.00019128,2]
[375199182,1753582467324,1832.4267945,0.00018336,2]
[375199183,1753582498528,150.0,0.00018999,2]
[375199184,1753582567123,150.0,0.00018726,2]
[375199186,1753582730521,156.94268995,0.00018977,2]
[375199188,1753582889012,193.240997,0.00013699,2]
[375199190,1753582916235,150.0,0.00018664,2]
[375199191,1753582956462,5000.0,0.0001901,2]
[375199193,1753583030574,294.985564,0.00018457,2]
[375199194,1753583030890,328.142338,0.00018503,2]
[375199195,1753583031234,291.98810944,0.00018503,2]
[375199196,1753583060801,150.0,0.00018951,2]
[375199199,1753583184261,150.0,0.000189,2]
[375199200,1753583221308,1623.10362345,0.00018978,2]
[375199202,1753583249102,-703.54632731,0.00019028,2]
[375199203,1753583249124,-327.32,0.00019068,3]
[375199204,1753583249145,-154.11522887,0.00019068,3]
[375199207,1753583315906,1585.03412399,0.00017,2]
[375199208,1753583315930,40000.0,0.00017,2]
[375199209,1753583315952,40000.0,0.00017,2]
[375199210,1753583315974,2013.16182044,0.00017,2]
[375199211,1753583321695,562.83706184,0.00018978,2]
[375199212,1753583326793,156.98955057,0.00025742,120]
[375199213,1753583330049,156.94268995,0.00018977,2]
[375199214,1753583332417,168.808484,0.00018501,2]
[375199215,1753583332761,153.10141386,0.00018501,2]
[375199216,1753583342162,5000.0,0.0001901,2]
[375199217,1753583349269,150.0,0.00018891,2]
[375199248,1753583432404,-9.54477113,0.00019068,3]
[375199250,1753583432414,-491.01,0.00019068,3]
[375199252,1753583432426,-562.83706183,0.00019072,2]
[375199256,1753583432436,-500.0,0.00019072,2]
[375199258,1753583432447,-500.0,0.00019072,2]
[375199259,1753583432456,-500.0,0.00019072,2]
[375199260,1753583432466,-24.28164177,0.00019072,2]
[375199294,1753583438174,-475.71835823,0.00019072,2]
[375199296,1753583438183,-296.38258884,0.00019072,2]
[375199308,1753583438289,-79.36915844,0.00019072,2]
[375199310,1753583438299,-246.0,0.00019072,2]
[375199311,1753583438309,-300.0,0.00019072,2]
[375199313,1753583438319,-300.0,0.00019072,2]
[375199315,1753583438328,-1144.32846319,0.00019072,2]
[375199318,1753583438344,-55.67153681,0.00019072,2]
[375199321,1753583438354,-50000.0,0.00019073,2]
[375199323,1753583438364,-1200.0,0.00019073,2]
[375199325,1753583438373,-500.0,0.00019077,2]
[375199327,1753583438382,-500.0,0.00019077,2]
[375199329,1753583438392,-546.03254278,0.00019077,2]
[375199332,1753583438412,-500.0,0.00019077,2]
[375199334,1753583438423,-500.0,0.00019077,2]
[375199336,1753583438433,-500.0,0.00019077,2]
[375199338,1753583438443,-500.0,0.00019077,2]
[375199340,1753583438453,-500.0,0.00019077,2]
[375199342,1753583438465,-500.0,0.00019077,2]
[375199345,1753583438475,-634.81633793,0.00019077,2]
[375199347,1753583438485,-500.0,0.00019077,2]
[375199349,1753583438495,-500.0,0.00019077,2]
[375199351,1753583438505,-500.0,0.00019077,2]
[375199353,1753583438516,-370000.0,0.00019078,2]
[375199355,1753583438528,-17892.03774226,0.00019078,2]
[375199357,1753583438538,-3815.73589478,0.000191,2]
[375199359,1753583438548,-46927.38922478,0.0001915,2]
[375199361,1753583438558,-562.83706183,0.00019165,2]
[375199363,1753583438568,-532.93088371,0.00019173,2]
[375199365,1753583438578,-500.0,0.00019173,2]
[375199367,1753583438588,-500.0,0.00019173,2]
[375199369,1753583438600,-500.0,0.00019173,2]
[375199371,1753583438611,-500.0,0.00019173,2]
[375199373,1753583438622,-500.0,0.00019173,2]
[375199375,1753583438631,-500.0,0.00019173,2]
[375199377,1753583438641,-500.0,0.00019173,2]
[375199379,1753583438650,-500.0,0.00019173,2]
[375199381,1753583438660,-500.0,0.00019173,2]
[375199383,1753583438670,-500.0,0.00019173,2]
[375199385,1753583438680,-500.0,0.00019173,2]
[375199386,1753583438689,-500.0,0.00019173,2]
[375199387,1753583438699,-500.0,0.00019173,2]
[375199388,1753583438710,-500.0,0.00019173,2]
[375199389,1753583438720,-460.0,0.00019178,2]
[375199390,1753583438729,-460.0,0.00019178,2]
[375199391,1753583438739,-460.0,0.00019178,2]
[375199392,1753583438749,-460.0,0.00019178,2]
[375199393,1753583438759,-460.0,0.00019178,2]
[375199394,1753583438769,-460.0,0.00019178,2]
[375199395,1753583438779,-540.72160293,0.00019178,2]
[375199396,1753583438789,-460.0,0.00019178,2]
[375199397,1753583438799,-460.0,0.00019178,2]
[375199398,1753583438808,-460.0,0.00019178,2]
[375199399,1753583438818,-460.0,0.00019178,2]
[375199400,1753583438828,-460.0,0.00019178,2]
[375199401,1753583438837,-460.0,0.00019178,2]
[375199402,1753583438848,-460.0,0.00019178,2]
[375199403,1753583438857,-460.0,0.00019178,2]
[375199404,1753583438867,-460.0,0.00019178,2]
[375199405,1753583438877,-460.0,0.00019178,2]
[375199406,1753583438887,-460.0,0.00019178,2]
[375199407,1753583438897,-460.0,0.00019178,2]
[375199408,1753583438907,-460.0,0.00019178,2]
[375199409,1753583438917,-460.0,0.00019178,2]
[375199410,1753583438927,-460.0,0.00019178,2]
[375199411,1753583438936,-152.33328842,0.00019178,2]
[375199412,1753583438946,-460.0,0.00019178,2]
[375199413,1753583438956,-460.0,0.00019178,2]
[375199414,1753583438966,-460.0,0.00019178,2]
[375199415,1753583438976,-460.0,0.00019178,2]
[375199416,1753583438986,-460.0,0.00019178,2]
[375199417,1753583438996,-462.21134424,0.00019178,2]
[375199418,1753583439006,-460.0,0.00019178,2]
[375199419,1753583439015,-460.0,0.00019178,2]
[375199420,1753583439029,-460.0,0.00019178,2]
[375199421,1753583439039,-460.0,0.00019178,2]
[375199422,1753583439048,-460.0,0.00019178,2]
[375199423,1753583439058,-460.0,0.00019178,2]
[375199424,1753583439068,-460.0,0.00019178,2]
[375199425,1753583439078,-301.8188812,0.00019178,2]
[375199426,1753583439087,-460.0,0.00019178,2]
[375199427,1753583439097,-460.0,0.00019178,2]
[375199428,1753583439107,-460.0,0.00019178,2]
[375199429,1753583439117,-317.84228794,0.00019178,2]
[375199430,1753583439128,-460.0,0.00019178,2]
[375199431,1753583439138,-490.99281828,0.00019178,2]
[375199432,1753583439148,-460.0,0.00019178,2]
[375199433,1753583439158,-460.0,0.00019178,2]
[375199434,1753583439168,-460.0,0.00019178,2]
[375199435,1753583439179,-464.40014863,0.00019178,2]
[375199436,1753583439189,-460.0,0.00019178,2]
[375199437,1753583439199,-460.0,0.00019178,2]
[375199438,1753583439209,-460.0,0.00019178,2]
[375199439,1753583439219,-462.80401775,0.00019178,2]
[375199440,1753583439230,-463.58848491,0.00019178,2]
[375199441,1753583439239,-464.39755925,0.00019178,2]
[375199442,1753583439250,-460.0,0.00019178,2]
[375199443,1753583439260,-460.0,0.00019178,2]
[375199444,1753583439270,-465.48932078,0.00019178,2]
[375199445,1753583439280,-460.0,0.00019178,2]
[375199446,1753583439290,-460.0,0.00019178,2]
[375199447,1753583439300,-461.99289925,0.00019178,2]
[375199448,1753583439309,-460.0,0.00019178,2]
[375199449,1753583439320,-460.79701118,0.00019178,2]
[375199450,1753583439330,-460.79701118,0.00019178,2]
[375199451,1753583439339,-460.0,0.00019178,2]
[375199452,1753583439349,-460.0,0.00019178,2]
[375199453,1753583439359,-460.0,0.00019178,2]
[375199454,1753583439370,-461.95307922,0.00019178,2]
[375199455,1753583439379,-460.0,0.00019178,2]
[375199456,1753583439389,-460.0,0.00019178,2]
[375199457,1753583439399,-460.0,0.00019178,2]
[375199458,1753583439410,-463.97983337,0.00019178,2]
[375199459,1753583439420,-460.0,0.00019178,2]
[375199460,1753583439430,-460.0,0.00019178,2]
[375199461,1753583439441,-460.0,0.00019178,2]
[375199462,1753583439450,-1243.05,0.00019178,2]
[375199463,1753583439462,-460.0,0.00019178,2]
[375199464,1753583439473,-465.53209997,0.00019178,2]
[375199465,1753583439483,-460.0,0.00019178,2]
[375199466,1753583439493,-460.0,0.00019178,2]
[375199467,1753583439503,-466.89341778,0.00019178,2]
[375199468,1753583439513,-460.0,0.00019178,2]
[375199469,1753583439527,-460.0,0.00019178,2]
[375199470,1753583439537,-460.0,0.00019178,2]
[375199471,1753583439548,-460.0,0.00019178,2]
[375199472,1753583439558,-460.0,0.00019178,2]
[375199473,1753583439567,-460.0,0.00019178,2]
[375199474,1753583439576,-461.06610935,0.00019178,2]
[375199475,1753583439585,-460.0,0.00019178,2]
[375199476,1753583439595,-460.0,0.00019178,2]
[375199477,1753583439604,-460.0,0.00019178,2]
[375199478,1753583439614,-460.0,0.00019178,2]
[375199479,1753583439624,-462.4390113,0.00019178,2]
[375199481,1753583439633,-521.52852086,0.00019178,2]
[375199482,1753583439642,-460.0,0.00019178,2]
[375199483,1753583439651,-460.0,0.00019178,2]
[375199484,1753583439661,-460.0,0.00019178,2]
[375199485,1753583439670,-460.0,0.00019178,2]
[375199486,1753583439679,-460.0,0.00019178,2]
[375199487,1753583439690,-460.0,0.00019178,2]
[375199488,1753583439699,-460.0,0.00019178,2]
[375199489,1753583439709,-460.0,0.00019178,2]
[375199490,1753583439718,-460.0,0.00019178,2]
[375199491,1753583439727,-466.66142418,0.00019178,2]
[375199492,1753583439737,-460.0,0.00019178,2]
[375199493,1753583439747,-460.0,0.00019178,2]
[375199494,1753583439756,-280.99383529,0.00019178,2]
[375199495,1753583439765,-460.0,0.00019178,2]
[375199496,1753583439775,-460.0,0.00019178,2]
[375199497,1753583439785,-460.0,0.00019178,2]
[375199498,1753583439796,-460.0,0.00019178,2]
[375199499,1753583439805,-460.0,0.00019178,2]
[375199500,1753583439815,-460.0,0.00019178,2]
[375199502,1753583439825,-460.0,0.00019178,2]
[375199503,1753583439834,-462.69224166,0.00019178,2]
[375199504,1753583439845,-463.6512821,0.00019178,2]
[375199505,1753583439855,-426.54342863,0.00019178,2]
[375199506,1753583439865,-547.84,0.00019178,2]
[375199507,1753583439874,-460.0,0.00019178,2]
[375199509,1753583439885,-467.3059445,0.00019178,2]
[375199510,1753583439897,-631.34,0.00019178,2]
[375199511,1753583439907,-460.0,0.00019178,2]
[375199512,1753583439918,-464.48880508,0.00019178,2]
[375199513,1753583439929,-460.0,0.00019178,2]
[375199515,1753583439938,-466.08325212,0.00019178,2]
[375199517,1753583439948,-460.0,0.00019178,2]
[375199518,1753583439958,-464.52908236,0.00019178,2]
[375199520,1753583439967,-460.0,0.00019178,2]
[375199522,1753583439976,-460.0,0.00019178,2]
[375199524,1753583439986,-460.0,0.00019178,2]
[375199525,1753583439996,-460.0,0.00019178,2]
[375199526,1753583440006,-460.0,0.00019178,2]
[375199527,1753583440016,-460.0,0.00019178,2]
[375199528,1753583440025,-460.0,0.00019178,2]
[375199529,1753583440035,-460.0,0.00019178,2]
[375199530,1753583440045,-460.0,0.00019178,2]
[375199531,1753583440055,-460.0,0.00019178,2]
[375199532,1753583440064,-465.38203641,0.00019178,2]
[375199533,1753583440073,-532.44758622,0.00019178,2]
[375199534,1753583440083,-532.26,0.00019178,2]
[375199535,1753583440093,-184.45425654,0.00019178,2]
[375199536,1753583440102,-154.4951503,0.00019178,2]
[375199537,1753583440112,-460.0,0.00019178,2]
[375199538,1753583440122,-470.47361036,0.00019178,2]
[375199539,1753583440131,-465.75455676,0.00019178,2]
[375199540,1753583440269,-461.18410579,0.00019178,2]
[375199541,1753583440281,-463.02200572,0.00019178,2]
[375199542,1753583440291,-460.0,0.00019178,2]
[375199543,1753583440301,-460.0,0.00019178,2]
[375199544,1753583440310,-460.0,0.00019178,2]
[375199545,1753583440319,-460.0,0.00019178,2]
[375199546,1753583440338,-460.0,0.00019178,2]
[375199547,1753583440351,-460.0,0.00019178,2]
[375199548,1753583440361,-460.0,0.00019178,2]
[375199549,1753583440371,-466.82088273,0.00019178,2]
[375199550,1753583440381,-460.0,0.00019178,2]
[375199551,1753583440392,-468.86252107,0.00019178,2]
[375199552,1753583440402,-460.0,0.00019178,2]
[375199553,1753583440413,-460.0,0.00019178,2]
[375199554,1753583440423,-460.0,0.00019178,2]
[375199556,1753583440434,-460.0,0.00019178,2]
[375199558,1753583440444,-460.0,0.00019178,2]
[375199559,1753583440454,-466.45905334,0.00019178,2]
[375199560,1753583440465,-460.0,0.00019178,2]
[375199561,1753583440475,-460.0,0.00019178,2]
[375199562,1753583440484,-405.80258103,0.00019178,2]
[375199563,1753583440494,-507.48589138,0.00019178,2]
[375199564,1753583440504,-460.0,0.00019178,2]
[375199565,1753583440514,-460.0,0.00019178,2]
[375199566,1753583440528,-460.0,0.00019178,2]
[375199567,1753583440538,-822.33,0.00019178,2]
[375199568,1753583440548,-460.0,0.00019178,2]
[375199569,1753583440559,-460.0,0.00019178,2]
[375199570,1753583440569,-466.71693846,0.00019178,2]
[375199571,1753583440579,-460.0,0.00019178,2]
[375199572,1753583440589,-460.0,0.00019178,2]
[375199573,1753583440599,-460.0,0.00019178,2]
[375199574,1753583440610,-460.0,0.00019178,2]
[375199575,1753583440620,-876.43,0.00019178,2]
[375199576,1753583440629,-460.0,0.00019178,2]
[375199577,1753583440639,-460.0,0.00019178,2]
[375199578,1753583440649,-460.0,0.00019178,2]
[375199579,1753583440659,-461.28945432,0.00019178,2]
[375199580,1753583440669,-494.95,0.00019178,2]
[375199581,1753583440679,-460.0,0.00019178,2]
[375199582,1753583440689,-460.0,0.00019178,2]
[375199583,1753583440699,-460.0,0.00019178,2]
[375199584,1753583440708,-460.0,0.00019178,2]
[375199585,1753583440718,-461.95016669,0.00019178,2]
[375199586,1753583440728,-460.0,0.00019178,2]
[375199587,1753583440737,-277.44758321,0.00019178,2]
[375199588,1753583440748,-460.0,0.00019178,2]
[375199589,1753583440758,-460.0,0.00019178,2]
[375199591,1753583440768,-460.0,0.00019178,2]
[375199592,1753583440778,-460.0,0.00019178,2]
[375199594,1753583440788,-461.84626901,0.00019178,2]
[375199595,1753583440797,-460.0,0.00019178,2]
[375199596,1753583440808,-460.0,0.00019178,2]
[375199597,1753583440817,-461.69845367,0.00019178,2]
[375199598,1753583440827,-891.87,0.00019178,2]
[375199600,1753583440837,-460.0,0.00019178,2]
[375199602,1753583440847,-461.98181672,0.00019178,2]
[375199604,1753583440857,-460.0,0.00019178,2]
[375199606,1753583440866,-461.69001322,0.00019178,2]
[375199608,1753583440876,-465.41742292,0.00019178,2]
[375199610,1753583440885,-460.0,0.00019178,2]
[375199612,1753583440895,-460.0,0.00019178,2]
[375199614,1753583440905,-460.0,0.00019178,2]
[375199616,1753583440915,-462.43340104,0.00019178,2]
[375199618,1753583440925,-461.26884382,0.00019178,2]
[375199620,1753583440935,-460.0,0.00019178,2]
[375199622,1753583440945,-460.0,0.00019178,2]
[375199624,1753583440955,-460.0,0.00019178,2]
[375199626,1753583440964,-460.0,0.00019178,2]
[375199628,1753583440974,-500.0,0.00019178,2]
[375199630,1753583440983,-460.0,0.00019178,2]
[375199632,1753583440993,-460.0,0.00019178,2]
[375199634,1753583441003,-341.43701561,0.00019178,2]
[375199636,1753583441012,-460.67023128,0.00019178,2]
[375199638,1753583441022,-460.0,0.00019178,2]
[375199640,1753583441032,-460.0,0.00019178,2]
[375199642,1753583441041,-460.0,0.00019178,2]
[375199644,1753583441052,-460.0,0.00019178,2]
[375199646,1753583441062,-460.0,0.00019178,2]
[375199648,1753583441071,-460.0,0.00019178,2]
[375199650,1753583441081,-460.53870257,0.00019178,2]
[375199652,1753583441091,-460.0,0.00019178,2]
[375199654,1753583441100,-460.0,0.00019178,2]
[375199656,1753583441110,-465.85540451,0.00019178,2]
[375199658,1753583441120,-460.0,0.00019178,2]
[375199660,1753583441130,-460.0,0.00019178,2]
[375199662,1753583441142,-461.1130713,0.00019178,2]
[375199664,1753583441157,-456.97590121,0.00019178,2]
[375199665,1753583441166,-460.0,0.00019178,2]
[375199667,1753583441176,-461.00400169,0.00019178,2]
[375199670,1753583441187,-460.0,0.00019178,2]
[375199672,1753583441196,-589.4616028,0.00019178,2]
[375199673,1753583441206,-500.0,0.00019178,2]
[375199675,1753583441216,-460.0,0.00019178,2]
[375199677,1753583441227,-513.69,0.00019178,2]
[375199679,1753583441237,-460.0,0.00019178,2]
[375199681,1753583441247,-460.0,0.00019178,2]
[375199683,1753583441256,-460.0,0.00019178,2]
[375199685,1753583441266,-460.0,0.00019178,2]
[375199687,1753583441275,-460.0,0.00019178,2]
[375199689,1753583441285,-460.0,0.00019178,2]
[375199691,1753583441295,-460.0,0.00019178,2]
[375199694,1753583441305,-460.64309141,0.00019178,2]
[375199695,1753583441314,-465.28914722,0.00019178,2]
[375199697,1753583441324,-460.0,0.00019178,2]
[375199699,1753583441334,-460.0,0.00019178,2]
[375199701,1753583441343,-499.86,0.00019178,2]
[375199703,1753583441353,-501.08519734,0.00019178,2]
[375199705,1753583441363,-460.0,0.00019178,2]
[375199707,1753583441372,-460.0,0.00019178,2]
[375199709,1753583441382,-460.0,0.00019178,2]
[375199711,1753583441391,-460.0,0.00019178,2]
[375199714,1753583441406,-443.8601687,0.00019178,2]
[375199716,1753583441416,-460.0,0.00019178,2]
[375199718,1753583441426,-460.0,0.00019178,2]
[375199720,1753583441435,-498.19,0.00019178,2]
[375199722,1753583441445,-460.0,0.00019178,2]
[375199723,1753583441454,-460.0,0.00019178,2]
[375199724,1753583441464,-460.0,0.00019178,2]
[375199725,1753583441474,-532.52462205,0.00019178,2]
[375199727,1753583441483,-460.0,0.00019178,2]
[375199728,1753583441493,-461.72469625,0.00019178,2]
[375199730,1753583441503,-460.0,0.00019178,2]
[375199731,1753583441513,-463.57125146,0.00019178,2]
[375199732,1753583441527,-461.59895632,0.00019178,2]
[375199733,1753583441537,-460.0,0.00019178,2]
[375199734,1753583441547,-460.0,0.00019178,2]
[375199735,1753583441557,-460.0,0.00019178,2]
[375199736,1753583441567,-460.0,0.00019178,2]
[375199737,1753583441576,-460.0,0.00019178,2]
[375199738,1753583441586,-461.13940761,0.00019178,2]
[375199739,1753583441597,-460.0,0.00019178,2]
[375199740,1753583441607,-460.0,0.00019178,2]
[375199741,1753583441616,-461.16948056,0.00019178,2]
[375199742,1753583441626,-460.0,0.00019178,2]
[375199743,1753583441636,-460.0,0.00019178,2]
[375199744,1753583441647,-460.0,0.00019178,2]
[375199745,1753583441656,-460.0,0.00019178,2]
[375199746,1753583441667,-460.0,0.00019178,2]
[375199747,1753583441677,-461.01559279,0.00019178,2]
[375199748,1753583441687,-462.01432573,0.00019178,2]
[375199749,1753583441698,-460.0,0.00019178,2]
[375199750,1753583441709,-461.55799581,0.00019178,2]
[375199751,1753583441719,-460.0,0.00019178,2]
[375199752,1753583441728,-2168.67,0.00019178,2]
[375199753,1753583441738,-461.74179944,0.00019178,2]
[375199754,1753583441748,-460.0,0.00019178,2]
[375199755,1753583441758,-460.0,0.00019178,2]
[375199756,1753583441768,-460.0,0.00019178,2]
[375199757,1753583441778,-533.42,0.00019178,2]
[375199758,1753583441788,-460.0,0.00019178,2]
[375199759,1753583441797,-463.36719458,0.00019178,2]
[375199760,1753583441808,-460.0,0.00019178,2]
[375199761,1753583441819,-460.0,0.00019178,2]
[375199762,1753583441829,-315.53776274,0.00019178,2]
[375199763,1753583441844,-460.0,0.00019178,2]
[375199764,1753583441853,-460.0,0.00019178,2]
[375199765,1753583441863,-460.0,0.00019178,2]
[375199766,1753583441872,-460.0,0.00019178,2]
[375199767,1753583441882,-460.0,0.00019178,2]
[375199768,1753583441892,-461.66810739,0.00019178,2]
[375199769,1753583441905,-460.0,0.00019178,2]
[375199770,1753583441914,-460.0,0.00019178,2]
[375199771,1753583441923,-460.0,0.00019178,2]
[375199772,1753583441933,-990.56,0.00019178,2]
[375199773,1753583441942,-460.0,0.00019178,2]
[375199774,1753583441951,-460.0,0.00019178,2]
[375199775,1753583441962,-460.0,0.00019178,2]
[375199776,1753583441971,-460.0,0.00019178,2]
[375199777,1753583441980,-461.65904699,0.00019178,2]
[375199778,1753583441989,-460.0,0.00019178,2]
[375199779,1753583441998,-460.49451847,0.00019178,2]
[375199780,1753583442009,-460.97118339,0.00019178,2]
[375199781,1753583442018,-759.02,0.00019178,2]
[375199782,1753583442027,-460.0,0.00019178,2]
[375199783,1753583442036,-463.82061342,0.00019178,2]
[375199784,1753583442046,-461.48785101,0.00019178,2]
[375199785,1753583442055,-460.0,0.00019178,2]
[375199786,1753583442065,-460.0,0.00019178,2]
[375199787,1753583442074,-461.55186778,0.00019178,2]
[375199788,1753583442083,-183.98996659,0.00019178,2]
[375199789,1753583442092,-460.0,0.00019178,2]
[375199790,1753583442102,-569.57,0.00019178,2]
[375199791,1753583442111,-461.47201897,0.00019178,2]
[375199792,1753583442120,-460.0,0.00019178,2]
[375199793,1753583442129,-462.58601337,0.00019178,2]
[375199794,1753583442139,-460.0,0.00019178,2]
[375199795,1753583442148,-460.0,0.00019178,2]
[375199796,1753583442157,-462.2989832,0.00019178,2]
[375199797,1753583442166,-460.0,0.00019178,2]
[375199798,1753583442176,-460.0,0.00019178,2]
[375199799,1753583442185,-460.0,0.00019178,2]
[375199800,1753583442194,-498.3356915,0.00019178,2]
[375199801,1753583442203,-464.39734225,0.00019178,2]
[375199802,1753583442212,-460.0,0.00019178,2]
[375199803,1753583442222,-550.19,0.00019178,2]
[375199804,1753583442231,-460.0,0.00019178,2]
[375199805,1753583442240,-460.0,0.00019178,2]
[375199806,1753583442249,-460.0,0.00019178,2]
[375199807,1753583442259,-460.0,0.00019178,2]
[375199808,1753583442268,-460.0,0.00019178,2]
[375199809,1753583442277,-500.0,0.00019178,2]
[375199810,1753583442286,-460.0,0.00019178,2]
[375199811,1753583442295,-734.23,0.00019178,2]
[375199812,1753583442305,-402.83252183,0.00019178,2]
[375199813,1753583442314,-460.0,0.00019178,2]
[375199814,1753583442325,-204.57897024,0.00019178,2]
[375199815,1753583442334,-460.0,0.00019178,2]
[375199816,1753583442344,-460.0,0.00019178,2]
[375199817,1753583442354,-460.0,0.00019178,2]
[375199818,1753583442363,-460.0,0.00019178,2]
[375199819,1753583442373,-708.32,0.00019178,2]
[375199820,1753583442383,-460.0,0.00019178,2]
[375199821,1753583442392,-460.0,0.00019178,2]
[375199822,1753583442402,-460.0,0.00019178,2]
[375199823,1753583442412,-460.0,0.00019178,2]
[375199824,1753583442422,-460.0,0.00019178,2]
[375199825,1753583442431,-460.0,0.00019178,2]
[375199826,1753583442441,-460.0,0.00019178,2]
[375199827,1753583442451,-460.0,0.00019178,2]
[375199828,1753583442461,-462.8635683,0.00019178,2]
[375199829,1753583442471,-460.0,0.00019178,2]
[375199830,1753583442591,-491.72,0.00019178,2]
[375199831,1753583442601,-463.3876939,0.00019178,2]
[375199832,1753583442611,-2306.74,0.00019178,2]
[375199833,1753583442622,-475.23838079,0.00019178,2]
[375199834,1753583442631,-460.0,0.00019178,2]
[375199835,1753583442641,-460.745166,0.00019178,2]
[375199836,1753583442651,-460.0,0.00019178,2]
[375199837,1753583442661,-460.0,0.00019178,2]
[375199838,1753583442670,-460.0,0.00019178,2]
[375199839,1753583442680,-461.05562577,0.00019178,2]
[375199840,1753583442689,-688.32,0.00019178,2]
[375199841,1753583442700,-465.06754705,0.00019178,2]
[375199842,1753583442710,-461.83903534,0.00019178,2]
[375199843,1753583442719,-463.03114537,0.00019178,2]
[375199844,1753583442729,-460.0,0.00019178,2]
[375199845,1753583442738,-463.05228028,0.00019178,2]
[375199846,1753583442748,-461.89500775,0.00019178,2]
[375199848,1753583442758,-460.0,0.00019178,2]
[375199849,1753583442767,-460.0,0.00019178,2]
[375199850,1753583442778,-460.0,0.00019178,2]